fUSD/lending_fUSD_20260601
["ID","MTS","AMOUNT","RATE_DAILY","PERIOD"]
[423619118,1780262008000,-176.16,0.00039511,7]
[423619109,1780262008000,-618.72,0.00039511,120]
[423619108,1780262008000,-618.72,0.00039511,120]
[423619106,1780262008000,-618.72,0.00039511,120]
[423619113,1780262008000,-618.72,0.00039511,120]
[423619112,1780262008000,-618.72,0.00039511,120]
[423619114,1780262008000,-172.61954782,0.00039511,30]
[423619110,1780262008000,-618.72,0.00039511,120]
[423619120,1780262008000,-193.0,0.00039511,120]
[423619116,1780262008000,-271.01,0.00039511,7]
[423619111,1780262008000,-618.72,0.00039511,120]
[423619085,1780262008000,-500.0,0.000395,14]
[423619105,1780262008000,-618.72,0.00039511,120]
[423619088,1780262008000,-374.6,0.000395,14]
[423619063,1780262008000,-2000.0,0.00039499,14]
[423619083,1780262008000,-500.0,0.000395,14]
[423619119,1780262008000,-477.53,0.00039511,10]
[423619064,1780262008000,-2000.0,0.00039499,30]
[423619065,1780262008000,-2000.0,0.00039499,11]
[423619059,1780262008000,-2000.0,0.00039417,15]
[423619061,1780262008000,-2000.0,0.00039494,10]
[423619058,1780262008000,-2383.43956196,0.00039415,2]
[423619062,1780262008000,-700000.0,0.00039495,7]
[423619060,1780262008000,-400.0,0.0003947,2]
[423619066,1780262008000,-2000.0,0.00039499,90]
[423619068,1780262008000,-2000.0,0.00039499,70]
[423619077,1780262008000,-1500.0,0.000395,120]
[423619070,1780262008000,-334.72,0.000395,14]
[423619067,1780262008000,-2000.0,0.00039499,75]
[423619071,1780262008000,-500.0,0.000395,14]
[423619079,1780262008000,-167.28,0.000395,47]
[423619072,1780262008000,-500.0,0.000395,14]
[423619073,1780262008000,-500.0,0.000395,14]
[423619078,1780262008000,-160.0,0.000395,47]
[423619069,1780262008000,-652.069478,0.000395,47]
[423619076,1780262008000,-500.0,0.000395,14]
[423619074,1780262008000,-500.0,0.000395,14]
[423619075,1780262008000,-500.0,0.000395,14]
[423619081,1780262008000,-167.28,0.000395,47]
[423619089,1780262008000,-2586.13347643,0.000395,60]
[423619080,1780262008000,-167.28,0.000395,47]
[423619090,1780262008000,-150.00000027,0.00039507,7]
[423619087,1780262008000,-500.0,0.000395,14]
[423619092,1780262008000,-300.0,0.0003951,10]
[423619082,1780262008000,-365.600521,0.000395,47]
[423619084,1780262008000,-500.0,0.000395,14]
[423619131,1780262008000,-177.0,0.00039511,120]
[423619102,1780262008000,-618.72,0.00039511,120]
[423619121,1780262008000,-164.0,0.00039511,120]
[423619157,1780262008000,-699.115698,0.00039511,30]
[423619168,1780262008000,-699.115698,0.00039511,30]
[423619165,1780262008000,-699.115698,0.00039511,30]
[423619163,1780262008000,-699.115698,0.00039511,30]
[423619170,1780262008000,-699.115694,0.00039511,30]
[423619164,1780262008000,-699.115698,0.00039511,30]
[423619159,1780262008000,-699.115698,0.00039511,30]
[423619166,1780262008000,-699.115698,0.00039511,30]
[423619167,1780262008000,-699.115698,0.00039511,30]
[423619161,1780262008000,-699.115698,0.00039511,30]
[423619169,1780262008000,-699.115698,0.00039511,30]
[423619162,1780262008000,-699.115698,0.00039511,30]
[423619160,1780262008000,-699.115698,0.00039511,30]
[423619171,1780262008000,-151.0,0.00039511,30]
[423619172,1780262008000,-151.0,0.00039511,30]
[423619182,1780262008000,-226.797148,0.00039511,30]
[423619183,1780262008000,-226.797148,0.00039511,30]
[423619174,1780262008000,-151.0,0.00039511,30]
[423619180,1780262008000,-226.797148,0.00039511,30]
[423619175,1780262008000,-151.0,0.00039511,30]
[423619177,1780262008000,-226.797148,0.00039511,30]
[423619178,1780262008000,-226.797148,0.00039511,30]
[423619173,1780262008000,-151.0,0.00039511,30]
[423619176,1780262008000,-151.0,0.00039511,30]
[423619181,1780262008000,-226.797148,0.00039511,30]
[423619185,1780262008000,-226.797148,0.00039511,30]
[423619184,1780262008000,-226.797148,0.00039511,30]
[423619186,1780262008000,-226.797148,0.00039511,30]
[423619130,1780262008000,-151.0,0.00039511,120]
[423619158,1780262008000,-699.115698,0.00039511,30]
[423619156,1780262008000,-699.115698,0.00039511,30]
[423619179,1780262008000,-226.797148,0.00039511,30]
[423619153,1780262008000,-699.115698,0.00039511,30]
[423619154,1780262008000,-699.115698,0.00039511,30]
[423619122,1780262008000,-265.0,0.00039511,120]
[423619123,1780262008000,-156.0,0.00039511,120]
[423619129,1780262008000,-187.0,0.00039511,120]
[423619128,1780262008000,-168.0,0.00039511,120]
[423619125,1780262008000,-157.99575143,0.00039511,2]
[423619127,1780262008000,-160.0,0.00039511,120]
[423619126,1780262008000,-157.0,0.00039511,120]
[423619133,1780262008000,-575.1,0.00039511,7]
[423619132,1780262008000,-156.0,0.00039511,120]
[423619141,1780262008000,-151.0,0.00039511,30]
[423619135,1780262008000,-151.0,0.00039511,30]
[423619134,1780262008000,-575.09,0.00039511,7]
[423619137,1780262008000,-151.0,0.00039511,30]
[423619142,1780262008000,-151.0,0.00039511,30]
[423619124,1780262008000,-172.0,0.00039511,120]
[423619139,1780262008000,-151.0,0.00039511,30]
[423619136,1780262008000,-151.0,0.00039511,30]
[423619148,1780262008000,-151.0,0.00039511,30]
[423619147,1780262008000,-151.0,0.00039511,30]
[423619146,1780262008000,-151.0,0.00039511,30]
[423619152,1780262008000,-699.115698,0.00039511,30]
[423619150,1780262008000,-150.82036713,0.00039511,2]
[423619149,1780262008000,-151.0,0.00039511,30]
[423619145,1780262008000,-151.0,0.00039511,30]
[423619138,1780262008000,-151.0,0.00039511,30]
[423619151,1780262008000,-699.115698,0.00039511,30]
[423619140,1780262008000,-151.0,0.00039511,30]
[423619155,1780262008000,-699.115698,0.00039511,30]
[423619143,1780262008000,-151.0,0.00039511,30]
[423619144,1780262008000,-151.0,0.00039511,30]
[423619218,1780262009000,-151.0,0.00039511,30]
[423619217,1780262009000,-151.0,0.00039511,30]
[423619220,1780262009000,-151.0,0.00039511,30]
[423619222,1780262009000,-151.0,0.00039511,30]
[423619219,1780262009000,-151.0,0.00039511,30]
[423619225,1780262009000,-151.0,0.00039511,30]
[423619224,1780262009000,-151.0,0.00039511,30]
[423619230,1780262009000,-1067.09,0.00039511,60]
[423619235,1780262009000,-374.210134,0.00039514,30]
[423619226,1780262009000,-151.0,0.00039511,30]
[423619215,1780262009000,-151.0,0.00039511,30]
[423619216,1780262009000,-151.0,0.00039511,30]
[423619231,1780262009000,-362.62154501,0.00039514,120]
[423619233,1780262009000,-374.210134,0.00039514,30]
[423619227,1780262009000,-151.0,0.00039511,30]
[423619237,1780262009000,-374.210134,0.00039514,30]
[423619228,1780262009000,-283.980255,0.00039511,30]
[423619234,1780262009000,-374.210134,0.00039514,30]
[423619232,1780262009000,-374.210134,0.00039514,30]
[423619239,1780262009000,-374.210134,0.00039514,30]
[423619238,1780262009000,-374.210134,0.00039514,30]
[423619251,1780262009000,-374.210134,0.00039514,30]
[423619250,1780262009000,-374.210134,0.00039514,30]
[423619210,1780262009000,-151.0,0.00039511,30]
[423619240,1780262009000,-374.210134,0.00039514,30]
[423619229,1780262009000,-250.0,0.00039511,7]
[423619214,1780262009000,-151.0,0.00039511,30]
[423619209,1780262009000,-151.0,0.00039511,30]
[423619223,1780262009000,-151.0,0.00039511,30]
[423619243,1780262009000,-374.210134,0.00039514,30]
[423619195,1780262009000,-226.797148,0.00039511,30]
[423619196,1780262009000,-226.797156,0.00039511,30]
[423619187,1780262009000,-226.797148,0.00039511,30]
[423619193,1780262009000,-226.797148,0.00039511,30]
[423619189,1780262009000,-226.797148,0.00039511,30]
[423619191,1780262009000,-226.797148,0.00039511,30]
[423619194,1780262009000,-226.797148,0.00039511,30]
[423619190,1780262009000,-226.797148,0.00039511,30]
[423619188,1780262009000,-226.797148,0.00039511,30]
[423619192,1780262009000,-226.797148,0.00039511,30]
[423619197,1780262009000,-151.0,0.00039511,30]
[423619212,1780262009000,-151.0,0.00039511,30]
[423619200,1780262009000,-151.0,0.00039511,30]
[423619208,1780262009000,-151.0,0.00039511,30]
[423619198,1780262009000,-151.0,0.00039511,30]
[423619206,1780262009000,-151.0,0.00039511,30]
[423619202,1780262009000,-151.0,0.00039511,30]
[423619207,1780262009000,-151.0,0.00039511,30]
[423619201,1780262009000,-151.0,0.00039511,30]
[423619205,1780262009000,-185.225932,0.00039511,30]
[423619204,1780262009000,-151.0,0.00039511,30]
[423619203,1780262009000,-151.0,0.00039511,30]
[423619211,1780262009000,-151.0,0.00039511,30]
[423619221,1780262009000,-301.384214,0.00039511,30]
[423619213,1780262009000,-151.0,0.00039511,30]
[423619199,1780262009000,-151.0,0.00039511,30]
[423619247,1780262009000,-374.210134,0.00039514,30]
[423619236,1780262009000,-374.210134,0.00039514,30]
[423619246,1780262009000,-374.210134,0.00039514,30]
[423619276,1780262009000,-151.0,0.00039514,30]
[423619275,1780262009000,-194.880569,0.00039514,30]
[423619272,1780262009000,-151.0,0.00039514,30]
[423619280,1780262009000,-194.880569,0.00039514,30]
[423619281,1780262009000,-151.0,0.00039514,30]
[423619291,1780262009000,-194.880569,0.00039514,30]
[423619282,1780262009000,-151.0,0.00039514,30]
[423619283,1780262009000,-194.880569,0.00039514,30]
[423619292,1780262009000,-151.0,0.00039514,30]
[423619285,1780262009000,-151.0,0.00039514,30]
[423619284,1780262009000,-151.0,0.00039514,30]
[423619286,1780262009000,-194.880569,0.00039514,30]
[423619274,1780262009000,-151.0,0.00039514,30]
[423619290,1780262009000,-151.0,0.00039514,30]
[423619288,1780262009000,-151.0,0.00039514,30]
[423619293,1780262009000,-194.880569,0.00039514,30]
[423619296,1780262009000,-151.0,0.00039514,30]
[423619301,1780262009000,-194.880575,0.00039514,30]
[423619300,1780262009000,-194.880569,0.00039514,30]
[423619295,1780262009000,-194.880569,0.00039514,30]
[423619294,1780262009000,-151.0,0.00039514,30]
[423619298,1780262009000,-206.30693,0.00039514,30]
[423619297,1780262009000,-194.880569,0.00039514,30]
[423619299,1780262009000,-194.880569,0.00039514,30]
[423619302,1780262009000,-291242.80344807,0.00039515,20]
[423619245,1780262009000,-374.210134,0.00039514,30]
[423619287,1780262009000,-151.0,0.00039514,30]
[423619269,1780262009000,-194.880569,0.00039514,30]
[423619289,1780262009000,-194.880569,0.00039514,30]
[423619273,1780262009000,-194.880569,0.00039514,30]
[423619271,1780262009000,-194.880569,0.00039514,30]
[423619241,1780262009000,-374.210134,0.00039514,30]
[423619249,1780262009000,-374.210134,0.00039514,30]
[423619248,1780262009000,-374.210134,0.00039514,30]
[423619244,1780262009000,-374.210134,0.00039514,30]
[423619254,1780262009000,-151.0,0.00039514,30]
[423619252,1780262009000,-151.0,0.00039514,30]
[423619257,1780262009000,-151.0,0.00039514,30]
[423619256,1780262009000,-151.0,0.00039514,30]
[423619258,1780262009000,-151.0,0.00039514,30]
[423619259,1780262009000,-151.0,0.00039514,30]
[423619261,1780262009000,-175.25781,0.00039514,30]
[423619255,1780262009000,-151.0,0.00039514,30]
[423619260,1780262009000,-151.0,0.00039514,30]
[423619266,1780262009000,-194.880569,0.00039514,30]
[423619264,1780262009000,-151.0,0.00039514,30]
[423619270,1780262009000,-194.880569,0.00039514,30]
[423619278,1780262009000,-151.0,0.00039514,30]
[423619277,1780262009000,-194.880569,0.00039514,30]
[423619279,1780262009000,-151.0,0.00039514,30]
[423619268,1780262009000,-194.880569,0.00039514,30]
[423619242,1780262009000,-374.210134,0.00039514,30]
[423619267,1780262009000,-194.880569,0.00039514,30]
[423619253,1780262009000,-151.0,0.00039514,30]
[423619263,1780262009000,-153.491733,0.00039514,30]
[423619262,1780262009000,-151.0,0.00039514,30]
[423619265,1780262009000,-154.381617,0.00039514,30]
[423619319,1780262010000,-151.0,0.00039515,30]
[423619326,1780262010000,-151.0,0.00039515,30]
[423619322,1780262010000,-151.0,0.00039515,30]
[423619318,1780262010000,-151.0,0.00039515,30]
[423619323,1780262010000,-151.0,0.00039515,30]
[423619321,1780262010000,-151.0,0.00039515,30]
[423619324,1780262010000,-271.41977,0.00039515,30]
[423619325,1780262010000,-151.0,0.00039515,30]
[423619327,1780262010000,-151.0,0.00039515,30]
[423619330,1780262010000,-151.0,0.00039515,30]
[423619336,1780262010000,-287.488256,0.00039515,30]
[423619332,1780262010000,-151.0,0.00039515,30]
[423619335,1780262010000,-151.0,0.00039515,30]
[423619320,1780262010000,-151.0,0.00039515,30]
[423619333,1780262010000,-151.0,0.00039515,30]
[423619306,1780262010000,-151.0,0.00039515,30]
[423619328,1780262010000,-151.0,0.00039515,30]
[423619338,1780262010000,-151.0,0.00039515,30]
[423619303,1780262010000,-300.0,0.00035573,2]
[423619305,1780262010000,-155.0,0.00039515,120]
[423619309,1780262010000,-151.0,0.00039515,30]
[423619315,1780262010000,-151.0,0.00039515,30]
[423619307,1780262010000,-151.0,0.00039515,30]
[423619304,1780262010000,-300.0,0.00035573,2]
[423619308,1780262010000,-151.0,0.00039515,30]
[423619314,1780262010000,-151.0,0.00039515,30]
[423619312,1780262010000,-151.0,0.00039515,30]
[423619313,1780262010000,-151.0,0.00039515,30]
[423619311,1780262010000,-151.0,0.00039515,30]
[423619310,1780262010000,-151.0,0.00039515,30]
[423619316,1780262010000,-151.0,0.00039515,30]
[423619317,1780262010000,-151.0,0.00039515,30]
[423619329,1780262010000,-151.0,0.00039515,30]
[423619334,1780262010000,-151.0,0.00039515,30]
[423619352,1780262010000,-151.0,0.00039515,30]
[423619342,1780262010000,-229.859367,0.00039515,30]
[423619359,1780262010000,-151.0,0.00039515,30]
[423619369,1780262010000,-193.025072,0.00039515,30]
[423619368,1780262010000,-193.025072,0.00039515,30]
[423619370,1780262010000,-193.025072,0.00039515,30]
[423619360,1780262010000,-151.0,0.00039515,30]
[423619361,1780262010000,-151.0,0.00039515,30]
[423619357,1780262010000,-151.0,0.00039515,30]
[423619363,1780262010000,-291.922408,0.00039515,30]
[423619362,1780262010000,-151.0,0.00039515,30]
[423619337,1780262010000,-151.0,0.00039515,30]
[423619365,1780262010000,-98.10873729,0.00039515,30]
[423619364,1780262010000,-94.91633471,0.00039515,30]
[423619367,1780262010000,-193.025072,0.00039515,30]
[423619371,1780262010000,-193.025072,0.00039515,30]
[423619366,1780262010000,-193.025072,0.00039515,30]
[423619356,1780262010000,-151.0,0.00039515,30]
[423619358,1780262010000,-151.0,0.00039515,30]
[423619351,1780262010000,-151.0,0.00039515,30]
[423619355,1780262010000,-151.0,0.00039515,30]
[423619331,1780262010000,-151.0,0.00039515,30]
[423619339,1780262010000,-158.19804,0.00039515,30]
[423619340,1780262010000,-151.0,0.00039515,30]
[423619354,1780262010000,-151.0,0.00039515,30]
[423619344,1780262010000,-151.0,0.00039515,30]
[423619343,1780262010000,-151.0,0.00039515,30]
[423619341,1780262010000,-151.0,0.00039515,30]
[423619348,1780262010000,-239.535013,0.00039515,30]
[423619347,1780262010000,-151.0,0.00039515,30]
[423619353,1780262010000,-151.0,0.00039515,30]
[423619345,1780262010000,-151.0,0.00039515,30]
[423619350,1780262010000,-151.0,0.00039515,30]
[423619346,1780262010000,-151.0,0.00039515,30]
[423619349,1780262010000,-151.0,0.00039515,30]
[423619389,1780262011000,-151.0,0.00039515,30]
[423619387,1780262011000,-151.0,0.00039515,30]
[423619388,1780262011000,-151.0,0.00039515,30]
[423619396,1780262011000,-151.0,0.00039515,30]
[423619394,1780262011000,-208.722963,0.00039515,30]
[423619392,1780262011000,-151.0,0.00039515,30]
[423619393,1780262011000,-151.0,0.00039515,30]
[423619385,1780262011000,-151.0,0.00039515,7]
[423619386,1780262011000,-151.0,0.00039515,7]
[423619379,1780262011000,-193.025072,0.00039515,30]
[423619373,1780262011000,-193.025072,0.00039515,30]
[423619376,1780262011000,-193.025072,0.00039515,30]
[423619380,1780262011000,-193.025072,0.00039515,30]
[423619378,1780262011000,-193.025072,0.00039515,30]
[423619375,1780262011000,-193.025072,0.00039515,30]
[423619384,1780262011000,-193.025064,0.00039515,30]
[423619383,1780262011000,-193.025072,0.00039515,30]
[423619382,1780262011000,-193.025072,0.00039515,30]
[423619374,1780262011000,-193.025072,0.00039515,30]
[423619372,1780262011000,-193.025072,0.00039515,30]
[423619395,1780262011000,-151.0,0.00039515,30]
[423619377,1780262011000,-193.025072,0.00039515,30]
[423619391,1780262011000,-151.0,0.00039515,30]
[423619381,1780262011000,-193.025072,0.00039515,30]
[423619398,1780262011000,-151.0,0.00039515,30]
[423619419,1780262011000,1475.65563366,8.731e-05,3]
[423619417,1780262011000,-861620.77513855,0.00039515,20]
[423619418,1780262011000,-14607.02804961,0.00039515,20]
[423619416,1780262011000,-300.0,0.00035573,2]
[423619415,1780262011000,-95.68145499,0.00035573,2]
[423619414,1780262011000,-204.31854501,0.00035573,2]
[423619420,1780262011000,1475.65563366,8.731e-05,3]
[423619412,1780262011000,-17380.61270162,0.00039515,20]
[423619411,1780262011000,-234.978476,0.00039515,30]
[423619405,1780262011000,-151.0,0.00039515,30]
[423619404,1780262011000,-151.0,0.00039515,30]
[423619413,1780262011000,-9984.45499999,0.00039515,20]
[423619402,1780262011000,-151.0,0.00039515,30]
[423619401,1780262011000,-151.0,0.00039515,30]
[423619400,1780262011000,-151.0,0.00039515,30]
[423619410,1780262011000,-151.0,0.00039515,30]
[423619397,1780262011000,-151.0,0.00039515,30]
[423619409,1780262011000,-151.0,0.00039515,30]
[423619408,1780262011000,-151.0,0.00039515,30]
[423619403,1780262011000,-151.0,0.00039515,30]
[423619407,1780262011000,-151.0,0.00039515,30]
[423619406,1780262011000,-151.0,0.00039515,30]
[423619399,1780262011000,-151.0,0.00039515,30]
[423619390,1780262011000,-151.0,0.00039515,30]
[423619422,1780262012000,-155.53,7.761e-05,2]
[423619421,1780262012000,155.53,7.022e-05,2]
[423619425,1780262014000,-824.0,7.354e-05,2]
[423619424,1780262014000,-250.0,8.329e-05,2]
[423619423,1780262014000,-158.36,8.219e-05,2]
[423619427,1780262015000,-824.0,7.354e-05,2]
[423619426,1780262015000,-824.0,7.354e-05,2]
[423619429,1780262016000,21.97108833,7.188e-05,2]
[423619430,1780262016000,250.0,7.105e-05,2]
[423619428,1780262016000,262.09916007,7.188e-05,2]
[423619431,1780262103000,1775.52123566,0.0003013,120]
[423619433,1780262163000,-6493.93,7.354e-05,2]
[423619436,1780262273000,356.0,0.0003013,120]
[423619439,1780262273000,-150.0,7.5e-05,2]
[423619438,1780262273000,1165.0,0.0003013,120]
[423619437,1780262273000,-150.0,7.427e-05,2]
[423619444,1780262274000,368.0,0.0003013,120]
[423619443,1780262274000,-150.0,7.574e-05,2]
[423619442,1780262274000,-50.0,7.574e-05,2]
[423619441,1780262274000,-100.0,7.539e-05,2]
[423619440,1780262274000,-150.0,7.539e-05,2]
[423619449,1780262275000,-150.0,7.574e-05,2]
[423619448,1780262275000,11659.0,0.0003013,120]
[423619445,1780262275000,10288.0,0.0003013,120]
[423619447,1780262275000,-74.0,7.723e-05,2]
[423619446,1780262275000,-76.0,7.574e-05,2]
[423619450,1780262276000,-150.0,7.649e-05,2]
[423619451,1780262276000,-150.0,7.723e-05,2]
[423619453,1780262284000,235.0,0.0003013,120]
[423619454,1780262286000,14491.0,0.0003013,120]
[423619457,1780262346000,3271.9288807,0.0003013,120]
[423619470,1780262396000,-299.0,8.099e-05,2]
[423619462,1780262396000,-976.0,7.723e-05,2]
[423619463,1780262396000,-250.0,7.723e-05,2]
[423619465,1780262396000,-150.0,7.799e-05,2]
[423619464,1780262396000,-150.0,7.724e-05,2]
[423619467,1780262396000,-150.0,7.874e-05,2]
[423619466,1780262396000,-200.0,7.871e-05,2]
[423619468,1780262396000,-150.0,7.949e-05,2]
[423619469,1780262396000,-150.0,8.024e-05,2]
[423619471,1780262396000,-193.0,8.17e-05,2]
[423619472,1780262396000,-300.0,8.494e-05,2]
[423619473,1780262396000,-1680.0,8.495e-05,2]
[423619474,1780262396000,-500.0,8.495e-05,2]
[423619477,1780262396000,-250.0,8.495e-05,2]
[423619476,1780262396000,-500.0,8.495e-05,2]
[423619475,1780262396000,-500.0,8.495e-05,2]
[423619488,1780262396000,-370.94662706,8.631e-05,2]
[423619487,1780262396000,-500.0,8.63e-05,2]
[423619485,1780262396000,-300.0,8.63e-05,2]
[423619484,1780262396000,-151.0,8.629e-05,2]
[423619483,1780262396000,-151.0,8.629e-05,2]
[423619486,1780262396000,-150.0,8.63e-05,2]
[423619482,1780262396000,-151.0,8.629e-05,2]
[423619481,1780262396000,-297.9618,8.532e-05,2]
[423619480,1780262396000,-2500.0,8.532e-05,2]
[423619489,1780262396000,-612.1142138,8.631e-05,2]
[423619478,1780262396000,-193.0,8.495e-05,2]
[423619479,1780262396000,-250.0,8.495e-05,2]
[423619501,1780262397000,-234.20530718,8.631e-05,2]
[423619509,1780262397000,-500.0,8.631e-05,2]
[423619506,1780262397000,-500.0,8.631e-05,2]
[423619504,1780262397000,-500.0,8.631e-05,2]
[423619505,1780262397000,-500.0,8.631e-05,2]
[423619502,1780262397000,-500.0,8.631e-05,2]
[423619503,1780262397000,-166.00425514,8.631e-05,2]
[423619498,1780262397000,-500.0,8.631e-05,2]
[423619493,1780262397000,-543.04201744,8.631e-05,2]
[423619499,1780262397000,-376.97977269,8.631e-05,2]
[423619497,1780262397000,-500.0,8.631e-05,2]
[423619495,1780262397000,-500.0,8.631e-05,2]
[423619494,1780262397000,-500.0,8.631e-05,2]
[423619496,1780262397000,-500.0,8.631e-05,2]
[423619492,1780262397000,-409.62865445,8.631e-05,2]
[423619491,1780262397000,-500.0,8.631e-05,2]
[423619490,1780262397000,-500.0,8.631e-05,2]
[423619500,1780262397000,-500.0,8.631e-05,2]
[423619507,1780262397000,-500.0,8.631e-05,2]
[423619512,1780262397000,-500.0,8.631e-05,2]
[423619510,1780262397000,-500.0,8.631e-05,2]
[423619529,1780262397000,-500.0,8.631e-05,2]
[423619526,1780262397000,-500.0,8.631e-05,2]
[423619528,1780262397000,-500.0,8.631e-05,2]
[423619525,1780262397000,-213.43984497,8.631e-05,2]
[423619508,1780262397000,-500.0,8.631e-05,2]
[423619523,1780262397000,-500.0,8.631e-05,2]
[423619524,1780262397000,-500.0,8.631e-05,2]
[423619522,1780262397000,-500.0,8.631e-05,2]
[423619521,1780262397000,-500.0,8.631e-05,2]
[423619527,1780262397000,-500.0,8.631e-05,2]
[423619520,1780262397000,-500.0,8.631e-05,2]
[423619518,1780262397000,-500.0,8.631e-05,2]
[423619517,1780262397000,-500.0,8.631e-05,2]
[423619516,1780262397000,-500.0,8.631e-05,2]
[423619515,1780262397000,-500.0,8.631e-05,2]
[423619514,1780262397000,-500.0,8.631e-05,2]
[423619511,1780262397000,-500.0,8.631e-05,2]
[423619513,1780262397000,-500.0,8.631e-05,2]
[423619519,1780262397000,-500.0,8.631e-05,2]
[423619537,1780262398000,-313.64010344,8.631e-05,2]
[423619536,1780262398000,-500.0,8.631e-05,2]
[423619535,1780262398000,-168.32249273,8.631e-05,2]
[423619533,1780262398000,-500.0,8.631e-05,2]
[423619530,1780262398000,-500.0,8.631e-05,2]
[423619532,1780262398000,-500.0,8.631e-05,2]
[423619531,1780262398000,-500.0,8.631e-05,2]
[423619538,1780262398000,-500.0,8.631e-05,2]
[423619534,1780262398000,-331.67750727,8.631e-05,2]
[423619539,1780262398000,-500.0,8.631e-05,2]
[423619550,1780262398000,-500.0,8.631e-05,2]
[423619541,1780262398000,-500.0,8.631e-05,2]
[423619547,1780262398000,-500.0,8.631e-05,2]
[423619549,1780262398000,-500.0,8.631e-05,2]
[423619551,1780262398000,-500.0,8.631e-05,2]
[423619548,1780262398000,-500.0,8.631e-05,2]
[423619542,1780262398000,-500.0,8.631e-05,2]
[423619546,1780262398000,-500.0,8.631e-05,2]
[423619545,1780262398000,-500.0,8.631e-05,2]
[423619543,1780262398000,-500.0,8.631e-05,2]
[423619540,1780262398000,-500.0,8.631e-05,2]
[423619544,1780262398000,-500.0,8.631e-05,2]
[423619567,1780262399000,-500.0,8.631e-05,2]
[423619563,1780262399000,-500.0,8.631e-05,2]
[423619565,1780262399000,-500.0,8.631e-05,2]
[423619564,1780262399000,-319.88830302,8.631e-05,2]
[423619562,1780262399000,-500.0,8.631e-05,2]
[423619560,1780262399000,-500.0,8.631e-05,2]
[423619561,1780262399000,-500.0,8.631e-05,2]
[423619559,1780262399000,-500.0,8.631e-05,2]
[423619569,1780262399000,-500.0,8.631e-05,2]
[423619555,1780262399000,-500.0,8.631e-05,2]
[423619557,1780262399000,-500.0,8.631e-05,2]
[423619556,1780262399000,-500.0,8.631e-05,2]
[423619553,1780262399000,-500.0,8.631e-05,2]
[423619554,1780262399000,-500.0,8.631e-05,2]
[423619552,1780262399000,-500.0,8.631e-05,2]
[423619558,1780262399000,-500.0,8.631e-05,2]
[423619566,1780262399000,-500.0,8.631e-05,2]
[423619568,1780262399000,-500.0,8.631e-05,2]
[423619585,1780262399000,-500.0,8.631e-05,2]
[423619589,1780262399000,-32419.91549228,8.632e-05,2]
[423619587,1780262399000,-500.0,8.631e-05,2]
[423619588,1780262399000,-500.0,8.631e-05,2]
[423619570,1780262399000,-500.0,8.631e-05,2]
[423619586,1780262399000,-500.0,8.631e-05,2]
[423619582,1780262399000,-500.0,8.631e-05,2]
[423619584,1780262399000,-500.0,8.631e-05,2]
[423619583,1780262399000,-500.0,8.631e-05,2]
[423619581,1780262399000,-178.23360853,8.631e-05,2]
[423619572,1780262399000,-500.0,8.631e-05,2]
[423619580,1780262399000,-200.0,8.631e-05,2]
[423619579,1780262399000,-500.0,8.631e-05,2]
[423619576,1780262399000,-500.0,8.631e-05,2]